Cogmind - Beta 16 @@@ ROGUE MODE // 2025.10.23 @ 10:51:41 Player: woegarden Result: Destroyed by G-50 Soldier with Heavy Laser Performance ------------- Evolutions (2) 1000 Regions Visited (3) 600 Robots Destroyed (7) 35 Value Destroyed (115) 115 Prototype IDs (4) 80 Alien Tech Used (0) 0 Bonus (200) 200 TOTAL SCORE: 2030 Bonus ------- Pacifist 200 Cogmind --------- Core Integrity 0/550 Matter 127/300 Energy 100/100 System Corruption 7% Temperature Cool (9) Movement Core (50) Location -8/Materials Parts ------- > --- POWER (1) -------- (None) > --- PROPULSION (2) --- (None) > --- UTILITY (4) ------ (None) > --- WEAPON (4) ------- Heavy Hammer > --- INVENTORY (5) ---- Carbon-fiber Leg Large Battery (200) Peak State ------------ > --- POWER ------------ Light Ion Engine > --- PROPULSION ------- Flight Unit Cesium-ion Thruster > --- UTILITY ---------- ECM Suite > --- WEAPON ----------- EM Shotgun Pulse Rifle Mining Claw > --- INVENTORY -------- Flight Unit Large Battery Heavy Hammer Mining Claw Mining Claw [Rating: 12] Favorites ----------- Power Light Ion Engine Engine Light Ion Engine Power Core Light Nuclear Core Propulsion Flight Unit Treads Light Treads Leg Aluminum Leg Wheel Wheel Flight Unit Flight Unit Utility Small Storage Unit Device Cooling System Storage Small Storage Unit Protection Core Shielding Weapon Mining Claw Energy Gun Small Laser Ballistic Gun Light Assault Rifle Impact Weapon Heavy Hammer Slashing Weapon Mining Claw Build | -11 -10 -9 -8 ------- Run | Yrd Mat Mat Mat Slots Evolved 4 | . . 2 2 Power . | . . . . Propulsion . | . . . . Utility 2 | . . 2 . Weapon 2 | . . . 2 Parts Attached 23 | . 1 14 8 Power 3 | . . 2 1 Engine 2 | . . 2 . Core 1 | . . . 1 Reactor . | . . . . Propulsion 7 | . . 6 1 Treads 2 | . . 2 . Leg . | . . . . Wheel 2 | . . 2 . Hover . | . . . . Flight 3 | . . 2 1 Utility 4 | . 1 2 1 Device 2 | . . 1 1 Storage . | . . . . Processor . | . . . . Hackware . | . . . . Protection 2 | . 1 1 . Artifact . | . . . . Weapon 9 | . . 4 5 Energy Gun 2 | . . . 2 Energy Cannon . | . . . . Ballistic Gun . | . . . . Ballistic Cannon . | . . . . Launcher . | . . . . Special Weapon . | . . . . Impact Weapon 2 | . . 1 1 Slashing Weapon 5 | . . 3 2 Piercing Weapon . | . . . . Special Melee Weapon . | . . . . Unidentified Prototypes . | . . . . Corrupted Parts 1 | . . . 1 System Corruption 7 | . . . 7 Parts Lost 15 | . 2 3 10 Power 4 | . 1 1 2 Propulsion 6 | . 1 2 3 Utility 1 | . . . 1 Weapon 4 | . . . 4 Highest Loss Streak 7 | . 2 3 7 To Critical Strikes . | . . . . Average Backups 4 | . 6 3 3 Power . | . 1 . . Propulsion 1 | . 4 . . Utility . | . . . 1 Weapon 2 | . 1 3 1 Tool/Special . | . . . . Unused Backups 5 | . . 4 1 Power . | . . . . Propulsion 1 | . . 1 . Utility 1 | . . 1 . Weapon 3 | . . 2 1 Tool/Special . | . . . . Average Slot Usage (%) 62 | . 87 70 35 Engine 8 | . 13 10 3 Treads 1 | . . 4 . Leg 6 | . 28 . . Wheel 3 | . . 8 . Flight 5 | . . 4 9 Device 2 | . . 3 3 Storage 7 | . 14 8 . Protection 4 | . 3 8 . Energy Gun 5 | . 14 1 3 Ballistic Gun 3 | . 14 1 . Impact Weapon 1 | . . 2 2 Slashing Weapon 10 | . . 15 11 Peak Build Rating 12 | . 7 10 12 Average Rating 6 | . 6 7 5 On Entrance 5 | 6 6 5 5 Avg Prop Armor Cover (%) . | . . . . Naked Turns 1 | . . . 1 Heaviest Build 16 | 10 11 16 12 Greatest Support 40 | 20 20 40 10 Greatest Overweight (x) 3 | . . 3 3 Average Overweight (x) . | . . . . Largest Inventory Capacity 8 | . 8 8 5 Average Capacity 6 | . 8 7 5 Most Carried 6 | . 6 5 5 Average Carried 4 | . 6 3 3 Final Capacity 8 | 8 8 5 5 Final Carried 6 | 6 6 5 2 Class Distribution -------------------- 100% | Mutant Dominant Class ---------------- Mutant | -10/Materials Mutant | -9/Materials Mutant | -8/Materials Resources | -11 -10 -9 -8 ----------- Run | Yrd Mat Mat Mat Matter Collected 292 | 200 . 68 24 Remotely . | . . . . Salvage Created 107 | . . 68 39 Parts 11 | . . 7 4 Haulers Intercepted . | . . . . Recyclers Shooed . | . . . . Parts Field Recycled . | . . . . Retrieved Matter . | . . . . Parts Self-Destructed . | . . . . Prevented . | . . . . Parts Restored . | . . . . Kills | -11 -10 -9 -8 ------- Run | Yrd Mat Mat Mat Combat Hostiles Destroyed 7 | . . 4 3 Melee 6 | . . 4 2 Guns 1 | . . . 1 Classes Destroyed 3 | . . 2 1 Swarmer 3 | . . 3 . Cutter 3 | . . . 3 Grunt 1 | . . 1 . Best Kill Streak 3 | . . 3 2 Combat Bots Only 3 | . . 3 2 Max Kills in Single Turn 1 | . . 1 1 Gunslinging . | . . . . Exploded . | . . . . Melee 1 | . . 1 1 Uniques/NPCs Destroyed . | . . . . Combat | -11 -10 -9 -8 -------- Run | Yrd Mat Mat Mat Hostile Shots Fired 161 | . 54 46 61 Missed 39 | . 19 5 15 Hits 122 | . 35 41 46 Melee 15 | . . . 15 Projectile 107 | . 35 41 31 AOE 1 | . . . 1 Critical Strikes 8 | . 1 . 7 Damage Taken 1794 | . 424 362 1008 Core 716 | . 66 88 562 Absorbed by Shields . | . . . . Redirected to Shielding 26 | . 9 17 . Core Remaining (%) 83 | 100 73 78 . Volleys Fired 8 | . . . 8 Largest 1 | . . . 1 Hottest 63 | . . . 63 Shots Fired 8 | . . . 8 Gun 8 | . . . 8 Cannon . | . . . . Launcher . | . . . . Special . | . . . . Kinetic . | . . . . Thermal 8 | . . . 8 Explosive . | . . . . Electromagnetic . | . . . . Robot Hit Streak 3 | . . . 3 Robot Miss Streak 1 | . . . 1 Penetration Max . | . . . . Secondary Targets . | . . . . Shots Hit Robots 28 | . . 12 16 Core Hits 8 | . . 4 4 Critical Kills . | . . . . Critical Parts Destroyed . | . . . . Critical Strikes . | . . . . Melee Attacks 48 | . . 22 26 Impact 26 | . . 8 18 Slashing 22 | . . 14 8 Piercing . | . . . . Sneak Attacks . | . . . . Combat Hostiles . | . . . . Follow-up Attacks 6 | . . 4 2 Damage Inflicted 700 | . . 309 391 Guns 84 | . . . 84 Cannons . | . . . . Explosions . | . . . . Melee 616 | . . 309 307 Ramming . | . . . . Kinetic . | . . . . Thermal 84 | . . . 84 Explosive . | . . . . Electromagnetic . | . . . . Impact 383 | . . 147 236 Slashing 233 | . . 162 71 Piercing . | . . . . Highest Corruption 7 | . . . 7 Average Corruption 7 | . . . 7 Corruption Purged . | . . . . Corruption Blocked . | . . . . Effects 1 | . . . 1 Data Loss (minor) 1 | . . . 1 Overload Shots . | . . . . Overflow Damage 35 | . . 14 21 Projectiles 17 | . . . 17 Explosions . | . . . . Melee 18 | . . 14 4 Knockbacks . | . . . . Impact . | . . . . Kinetic . | . . . . Secondary . | . . . . Self-Inflicted Damage . | . . . . Shots . | . . . . Rammed . | . . . . Targets Rammed . | . . . . Kicked . | . . . . Crushed . | . . . . Highest Temperature 18 | . 18 . 4 Average Temperature 6 | . 10 . 2 Received Heat Transfer 564 | . 255 84 225 Siege Activations . | . . . . Martial Activations . | . . . . Shielding Activations . | . . . . Robots Disrupted . | . . . . Combat Hostiles . | . . . . Robots Corrupted . | . . . . Combat Hostiles . | . . . . Parts Fried 1 | . . . 1 Impact Corruptions 2 | . . . 2 Robots Melted . | . . . . Combat Hostiles . | . . . . Parts Melted . | . . . . Heat Transferred 185 | . . . 185 Parts Sabotaged . | . . . . Parts Stolen . | . . . . Parts Stripped . | . . . . Power Chain Reactions . | . . . . Alert | -11 -10 -9 -8 ------- Run | Yrd Mat Mat Mat Maximum Alert Level . | . . . . Low Security (%) 100 | . 100 100 100 Level 1 . | . . . . Level 2 . | . . . . Level 3 . | . . . . Level 4 . | . . . . Level 5 . | . . . . High Security . | . . . . Max Security . | . . . . Peak Influence 55 | . 15 55 30 Initial 17 | . . . 17 Average 9 | . 1 13 9 Influence Increases 252 | . 15 122 115 Destroy 0b10 Robot/C 140 | . . 80 60 Destroy Leader 20 | . . 10 10 Successful Hack 17 | . 15 2 . Lose Combat Pursuer 75 | . . 30 45 Influence Decreases 252 | . 15 80 157 Entered New Map 25 | . . . 25 Time Decay 127 | . 15 50 62 Lost Part 100 | . . 30 70 Squads Dispatched 4 | . 2 1 1 Investigation 2 | . 2 . . Extermination . | . . . . Reinforcement 2 | . . 1 1 Assault . | . . . . Garrison . | . . . . Intercept . | . . . . Searches Triggered . | . . . . Construction Impeded . | . . . . Haulers Reinforced . | . . . . Active Scanning Responses . | . . . . Cargo Convoy Interrupts . | . . . . Stealth | -11 -10 -9 -8 --------- Run | Yrd Mat Mat Mat Distress Signals 1 | . . 1 . Communications Jammed . | . . . . Distress Signals . | . . . . Times Spotted 33 | . 10 11 12 Peak Tracking Total 10 | . 10 7 9 Tactical Retreats 4 | . . 2 2 ECM-based Alert Blocks 1 | . . . 1 Traps | -11 -10 -9 -8 ------- Run | Yrd Mat Mat Mat Traps Triggered 1 | . 1 . . Indirectly . | . . . . Trap Hack Attempts . | . . . . Triggered . | . . . . Disarmed . | . . . . Reprogrammed . | . . . . Reused . | . . . . Traps Extracted . | . . . . Installed . | . . . . Triggered . | . . . . Machines | -11 -10 -9 -8 ---------- Run | Yrd Mat Mat Mat Machines Disabled . | . . . . Max in Single Turn . | . . . . Machines Repaired . | . . . . Machines Dismantled . | . . . . Machines Sabotaged . | . . . . Overloaded Fab Kills . | . . . . Hacking | -11 -10 -9 -8 --------- Run | Yrd Mat Mat Mat Machines Accessed 6 | . 2 3 1 Terminals 5 | . 2 2 1 Fabricators . | . . . . Repair Stations . | . . . . Recycling Units . | . . . . Scanalyzers 1 | . . 1 . Garrison Access . | . . . . Total Hacks 22 | . 6 14 2 Successful 16 | . 6 8 2 Failed 5 | . . 5 . Catastrophic . | . . . . Database Lockouts 1 | . . 1 . Manual . | . . . . Terminals 13 | . 6 5 2 Fabricators . | . . . . Repair Stations . | . . . . Recycling Units . | . . . . Scanalyzers 9 | . . 9 . Garrison Access . | . . . . Terminal Hacks 10 | . 6 2 2 Record 4 | . 2 1 1 Prototype ID Bank 2 | . 1 . 1 Level Access Points 1 | . 1 . . Recall Reinforcements 1 | . . 1 . Hauler Manifests 1 | . 1 . . Zone Layout 1 | . 1 . . Fabricator Hacks . | . . . . Repair Station Hacks . | . . . . Recycling Unit Hacks . | . . . . Scanalyzer 6 | . . 6 . Insert Component 2 | . . 2 . Analyze 2 | . . 2 . Retrieve Study 2 | . . 2 . Garrison Access Hacks . | . . . . Unauthorized Hacks . | . . . . Terminals . | . . . . Fabricators . | . . . . Repair Stations . | . . . . Recycling Units . | . . . . Scanalyzers . | . . . . Garrison Access . | . . . . Data Cores Recovered . | . . . . Used . | . . . . Hacking Detections 4 | . 1 3 . Full Trace Events 3 | . 1 2 . Feedback Events . | . . . . Feedback Blocked . | . . . . Robot Schematics Acquired . | . . . . Robots Built . | . . . . Authchips . | . . . . Time . | . . . . Total Robot Build Rating . | . . . . Part Schematics Acquired 2 | . . 2 . Parts Built . | . . . . Authchips . | . . . . Time . | . . . . Total Part Build Rating . | . . . . Part Studies Acquired 2 | . . 2 . Parts Repaired . | . . . . Time . | . . . . Parts Recycled . | . . . . Recycled Matter . | . . . . Retrieved Matter . | . . . . Retrieved Components . | . . . . Parts Scanalyzed 2 | . . 2 . Part Schematics Acquired 2 | . . 2 . Parts Damaged . | . . . . Bothacking | -11 -10 -9 -8 ------------ Run | Yrd Mat Mat Mat Used RIF Installer . | . . . . Robots Hacked . | . . . . Non-combat . | . . . . Combat . | . . . . Robot Hacks Applied . | . . . . Relay Couplers Released . | . . . . Fabnet Peak Effective % . | . . . . Robots Rewired . | . . . . Allies Hacked . | . . . . Hacks Repelled . | . . . . Allies | -11 -10 -9 -8 -------- Run | Yrd Mat Mat Mat Total Allies . | . . . . Largest Group . | . . . . Highest-Rated Group . | . . . . Highest-Rated Ally . | . . . . Total Orders . | . . . . Ally Attacks . | . . . . Total Damage . | . . . . Kills . | . . . . Allies Corrupted . | . . . . Allies Melted . | . . . . Intel | -11 -10 -9 -8 ------- Run | Yrd Mat Mat Mat Active Infowar (turns) 88 | . . . 88 ECM 88 | . . . 88 Robot Analysis Total . | . . . . Derelict Logs Recovered . | . . . . Drone Launches . | . . . . Drone Recoveries . | . . . . Exploration | -11 -10 -9 -8 ------------- Run | Yrd Mat Mat Mat Turns Passed 615 | . 136 275 204 Spaces Moved 453 | 1 108 203 141 Core 11 | . . 1 10 Treads 28 | . . 28 . Legs 109 | 1 108 . . Wheels 60 | . . 60 . Hover . | . . . . Flight 245 | . . 114 131 Fastest Speed 34 | 120 120 37 34 Average Speed 80 | 120 120 70 64 Slowest Speed 200 | 120 120 200 200 Overloaded Moves . | . . . . Propulsion Burnouts . | . . . . Robots Hopped . | . . . . Potential Cave-ins . | . . . . Cave-ins Triggered . | . . . . Exploration Rate (%) 16 | 1 29 21 14 Regions Visited 3 Branch Regions . Pre-discovered Areas . | . . . . Known Exits Taken 1 | . 1 . . Unknown Exits Taken 2 | 1 . 1 . Scrap Searched . | . . . . Spaces Dug . | . . . . Terrain Destroyed . | . . . . Melee . | . . . . Projectile . | . . . . AOE . | . . . . Terrain Rammed . | . . . . Walls Destroyed . | . . . . Machines Disabled . | . . . . Actions | -11 -10 -9 -8 --------- Run | Yrd Mat Mat Mat Total 614 | . 114 300 200 Wait 54 | . 6 42 6 Move 450 | . 107 202 141 Hop . | . . . . Pick Up 8 | . . 8 . Fast Attach 16 | . 1 7 8 Attach 12 | . . 6 6 Detach 3 | . . 1 2 Swap 6 | . . 4 2 Drop 16 | . . 13 3 Fire 8 | . . . 8 Melee 41 | . . 17 24 Ram . | . . . . Kick . | . . . . Crush . | . . . . Escape Stasis . | . . . . Rewire . | . . . . Trap . | . . . . Miscellaneous . | . . . . Route ------- -11/Scrapyard -10/Materials (discovered 3 exits: *Mat x3) -9/Materials -8/Materials History --------- Turn | Location | Event 1 | -11/Scrapyard | Discovered new exit (range 0) 1 | -11/Scrapyard | Entered Materials 54 | -10/Materials | Identified exit to Materials 137 | -10/Materials | Entered another Materials area 137 | -9/Materials | Evolved 2 slots: Utility x2 300 | -9/Materials | Build established: Mutant 362 | -9/Materials | Central database locked down 366 | -9/Materials | Lost 3 parts (1p2n) 396 | -9/Materials | Discovered new exit (range 16) 412 | -9/Materials | Entered another Materials area 412 | -8/Materials | Evolved 2 slots: Weapon x2 521 | -8/Materials | Core integrity fell below 50% 577 | -8/Materials | Lost 7 parts (1p3n1u2w) 601 | -8/Materials | Core integrity fell below 20% 616 | -8/Materials | Destroyed by G-50 Soldier with Heavy Laser Last Messages --------------- 00560_ Hvy. Hammer severed. 00561_ The unstable cave ceiling collapses. 00573_ C-17 Slicer destroyed. 00575_ Acquired Mining Claw+. 00578_ Acquired Blade Saw. 00579_ Dropped Pulse Rifle. 00582_ Acquired Corrupted Lgt. Nuclear Core. 00582_ Integrated Corrupted Lgt. Nuclear Core (+7). 00582_ Blade Saw destroyed. 00585_ Acquired Hvy. Hammer. 00586_ Mining Claw+ follow-up attack on G-50 Soldier. 00586_ G-50 Soldier Carbon-fiber Leg ripped off. 00592_ Mining Claw+ follow-up attack on G-50 Soldier. 00594_ Lgt. Nuclear Core destroyed. 00596_ Mining Claw+ destroyed. 00598_ System corrupted: Component data lost. 00598_ Critical hit (Burn: +37). Map ----- +----------------------------------------------------+ | | | | | | | | | | | | | | | | | | | | | | | | | | | | | | | ??????????#############?????????????????????????? | | ??????????# #?????????????????????????? | | ??????????# #?????????????????????????? | | ??????????# ! ! #?????????????????????????? | | ??????????# #?????????????????????????? | | ??????????# = #?####????????????????????? | | ??????????# ??# !##???????????????????? | | ###???????# ] ???# !#???????????????????? | | #??????????### ######## !#???????????????????? | | #??????##### Yg !#???????????????????? | | #??????# ==# ##/####@ !#???????????????????? | | " #??????# [%! # #?# !##???????????????????? | | #??????# *# #####?####????????????????????? | | % ####???#] # #?????????????????????????????? | | ####"##### # #?????????????????????????????? | | !% + # #?????????????????????????????? | | ########## !# #?????????????????????????????? | | #????????# # #?????????????????????????????? | | #????????###### #?????????????????????????????? | | ????????????? ?????????????????????????????? | | ????????????? ?????????????????????????????? | | ???????????? ?????????????????????????????? | | ????????????# #????????????????????????????? | | ????????????# #????????????????????????????? | | ????????????###+###????????????????????????????? | | ???????????????????????????????????????????????? | | ???????????????????????????????????????????????? | | ???????????????????????????????????????????????? | | ???????????????????????????????????????????????? | | ???????????????????????????????????????????????? | | ????????????????????????????????????????????????? | | ????????????????????????????????????????????????? | | ????????????????????????????????????????????????? | | ????????????????????????????????????????????????? | | ????????????????????????????????????????????????? | +----------------------------------------------------+ Best States ------------- Heat Dissipation 50 Energy Generation 14 Energy Capacity 160 Matter Stores 300 Matter Capacity 300 Sight Range 16 Terrain Scan Density 10 ECM Strength 1 Core Shielding 20 Evasion (%) 63 Recoil Reduction 2 Item Schematics ----------------- Mining Claw | -9/Materials | Scanalyzed Flight Unit | -9/Materials | Scanalyzed Robot Schematics ------------------ None Fabricated ------------ Nothing Repaired ---------- Nothing Studied --------- Flight Unit | -9/Materials | Hacked Mining Claw | -9/Materials | Hacked Alien Tech Used ----------------- None Achievements -------------- None Challenges ------------ None Game ------ Seed ScrapComponentRipteeth Manual? 0 Play Time 00:12:15 Cumulative 110.8 hours Start 2025.10.23 @ 10:40:31 End 2025.10.23 @ 10:51:41 Sessions 1 Manual Loads 0 Difficulty Rogue Special Mode None Game No. 192 Rogue 146 Adventurer 45 Explorer 1 Win Type - Total 0 Types 0/0/0/0/0/0/0/0/0/0 Lore% 21 Gallery% 42 Achievement% 22 Wizard Run 0 Options --------- Layout 2 ASCII 0 Keyboard 0 Movement Mouse Keybinds 0 Fullscreen 1 Font 32/SmallcapsGlow Map View 50x44 Zoom Use 13% Tactical HUD 1 Map Filters NONE Filters LOW_CONTRAST(13,24,33)|BRIGHTNESS(90)|SATURATION(87) Steam 1 RUN: 43b17fc0-eb71-4273-908d-a776fb62e719